bitfinex-derivatives/quotes_ETHF0:USTF0_20250929
["timestamp","ask_amount","ask_price","bid_price","bid_amount"]
[1759153121762,0.312,4117.3,4116.7,0.43703]
[1759153121958,0.43701,4117.0,4116.8,0.43702]
[1759153122161,0.43703,4116.8,4116.6,0.75126664]
[1759153122359,0.43703,4116.8,4116.6,0.00282664]
[1759153122360,0.312,4116.7,4116.6,0.00282664]
[1759153122756,0.312,4116.7,4116.6,0.26182664]
[1759153123057,0.312,4116.7,4116.6,0.00282664]
[1759153123250,0.312,4116.7,4116.6,0.26182664]
[1759153123455,0.312,4116.7,4116.6,0.00282664]
[1759153125358,0.43703,4116.8,4116.7,0.3114]
[1759153125563,0.43701,4116.9,4116.8,0.3114]
[1759153125760,0.43701,4116.9,4116.6,0.00282664]
[1759153125761,0.43703,4116.7,4116.6,0.00282664]
[1759153126066,0.74903,4116.7,4116.6,0.00282664]
[1759153126361,0.74903,4116.7,4116.6,0.31422664]
[1759153126561,0.74903,4116.7,4116.6,0.00282664]
[1759153127262,0.74903,4116.7,4116.6,0.26182664]
[1759153127562,0.312,4117.2,4116.8,0.43702]
[1759153127758,40.80179297,4117.4,4117.0,0.3114]
[1759153127759,0.74899,4117.1,4117.0,0.3114]
[1759153127957,0.43702,4116.8,4116.7,0.74843]
[1759153128560,0.43702,4116.8,4116.7,0.3114]
[1759153128866,0.74903,4116.7,4116.6,0.26082664]
[1759153129065,0.74903,4116.7,4116.6,0.00282664]
[1759153129956,0.312,4116.7,4116.6,0.00282664]
[1759153130156,0.43702,4116.9,4116.8,0.74842]
[1759153130362,0.43702,4116.9,4116.8,0.3114]
[1759153130563,0.43697,4117.3,4116.8,0.3114]
[1759153130868,0.00179297,4117.4,4117.3,0.74837]
[1759153131063,0.00179297,4117.4,4117.3,1.00737]
[1759153131263,0.00179297,4117.4,4117.3,6.00737]
[1759153131866,0.00179297,4117.4,4117.3,0.74837]
[1759153132069,0.31379297,4117.4,4117.3,0.69597]
[1759153132364,0.00179297,4117.4,4117.3,0.5704]
[1759153132569,0.00179297,4117.4,4117.3,6.00736]
[1759153133362,0.00179297,4117.4,4117.3,5.5704]
[1759153134772,0.43684,4118.4,4117.4,0.31]
[1759153134968,0.43682,4118.5,4118.1,0.43686]
[1759153135167,0.3264,4118.9,4118.3,0.31]
[1759153135366,0.43683,4118.5,4118.2,0.259]
[1759153135664,0.43683,4118.4,4118.2,0.569]
[1759153135975,0.0020304,4118.4,4118.3,0.31]
[1759153137965,0.0020304,4118.4,4118.3,0.569]
[1759153138273,0.0020304,4118.4,4118.3,0.568]
[1759153138671,0.0020304,4118.4,4118.3,0.31]
[1759153138878,0.7652604,4118.4,4118.3,0.258]
[1759153139064,0.0020304,4118.4,4118.3,0.568]
[1759153139563,0.3284304,4118.4,4118.3,0.568]
[1759153139773,0.43687,4118.0,4117.8,1.29105764]
[1759153139977,0.0020304,4118.4,4118.0,0.1344]
[1759153140272,0.0020304,4118.4,4118.1,0.31]
[1759153140473,0.0020304,4118.4,4118.3,0.31]
[1759153140867,0.0020304,4118.4,4118.3,1.60105764]
[1759153141064,0.0020304,4118.4,4118.3,5.31]
[1759153141270,0.43671,4119.6,4119.0,0.57117]
[1759153141471,0.43671,4119.6,4119.2,0.31]
[1759153141772,0.3264,4119.9,4119.2,0.74675]
[1759153141967,0.43668,4119.9,4119.5,0.31]
[1759153142164,0.00187835,4119.9,4119.6,0.259]
[1759153142376,0.43855835,4119.9,4119.6,0.259]
[1759153142578,0.00187835,4119.9,4119.7,0.43669]
[1759153142776,0.00187835,4119.9,4119.8,0.31]
[1759153143270,0.3264,4121.5,4120.0,0.1344]
[1759153143466,0.3264,4121.9,4120.8,0.31]
[1759153143675,0.3264,4121.9,4120.9,0.259]
[1759153143868,0.3264,4121.6,4120.9,0.259]
[1759153144068,0.1296,4121.5,4120.9,0.259]
[1759153144277,0.1296,4121.5,4120.5,0.1344]
[1759153144278,0.43656,4121.1,4120.5,0.1344]
[1759153144475,0.13204779,4121.5,4119.9,1.28990668]
[1759153144680,0.13204779,4121.5,4119.5,1.86324313]
[1759153144681,0.3264,4120.2,4119.6,0.31]
[1759153144977,0.3264,4120.6,4119.7,0.259]
[1759153145175,0.43668,4119.9,4119.5,0.13631695]
[1759153145381,0.76309,4119.8,4119.6,0.31]
[1759153145677,0.76309,4119.8,4119.5,0.00191695]
[1759153145678,0.3264,4120.5,4119.7,0.569]
[1759153145873,0.43667,4120.0,4119.7,0.259]
[1759153146074,0.3264,4119.8,4119.7,0.259]
[1759153146280,0.3264,4119.8,4119.5,0.00191695]
[1759153146281,0.3264,4119.6,4119.5,0.00191695]
[1759153146480,0.3264,4119.6,4119.5,0.10391695]
[1759153146675,0.43669,4119.7,4119.5,0.41391695]
[1759153146981,0.3264,4119.6,4119.5,0.10391695]
[1759153147778,0.3264,4119.1,4118.3,0.31]
[1759153148076,0.3264,4119.6,4118.6,0.31]
[1759153148374,0.1296,4120.0,4118.5,0.1344]
[1759153148375,0.76319,4118.9,4118.5,0.1344]
[1759153148575,0.3264,4119.5,4118.6,0.31]
[1759153148777,0.3264,4120.1,4118.6,0.31265376]
[1759153148974,0.3264,4120.1,4118.6,1.29256044]
[1759153149176,1.09172,4119.8,4118.7,0.31]
[1759153149377,0.3264,4118.9,4118.8,0.259]
[1759153149878,0.43677,4119.0,4118.8,0.259]
[1759153150075,0.3264,4118.9,4118.8,0.259]
[1759153151678,0.43693,4117.5,4117.4,0.31]
[1759153151877,0.43691,4117.7,4117.5,0.31]
[1759153152076,0.456,4118.5,4117.4,0.259]
[1759153152276,0.3264,4118.5,4117.6,0.31]
[1759153152473,0.43683,4118.4,4117.5,0.1344]
[1759153152783,0.76331,4117.8,4117.6,0.31]
[1759153152979,0.43691,4117.8,4117.5,0.00179998]
[1759153153285,0.3264,4118.3,4117.6,0.31]
[1759153153480,0.4369,4117.8,4117.6,0.31]
[1759153153782,0.77712,4117.6,4117.5,0.00179998]
[1759153154173,0.77712,4117.6,4117.4,0.259]
[1759153154174,0.4674,4117.5,4117.4,0.259]
[1759153154379,0.43698,4117.0,4116.9,0.26]
[1759153154587,0.90438,4117.0,4116.9,0.2842]
[1759153154882,0.3402,4116.2,4115.6,1.28990668]
[1759153155079,0.43706,4116.3,4115.7,0.26]
[1759153155382,0.3402,4116.0,4115.8,0.3137]
[1759153155587,0.1272,4117.0,4115.8,0.3137]
[1759153155588,0.43701,4116.8,4115.8,0.3137]
[1759153155781,0.3402,4115.7,4115.6,0.00257452]
[1759153156285,5.3402,4115.7,4115.6,0.00257452]
[1759153156486,0.3402,4115.7,4115.6,0.26357452]
[1759153157587,0.3402,4116.2,4115.6,0.26357452]
[1759153157788,0.3402,4115.9,4115.6,0.26357452]
[1759153157983,0.3402,4115.7,4115.6,0.26357452]
[1759153158484,0.3402,4116.3,4115.6,0.26357452]
[1759153158882,0.1272,4117.0,4116.0,0.1276]
[1759153158883,0.4674,4117.0,4116.0,0.1276]
[1759153159080,0.43699,4116.9,4116.0,0.1276]
[1759153159282,0.4674,4117.0,4116.0,0.56468]
[1759153159691,0.90439,4117.0,4116.1,0.3137]
[1759153159888,0.4674,4117.0,4116.2,0.177]
[1759153160085,0.3402,4117.0,4116.3,0.43705]
[1759153160283,0.77715,4117.4,4116.4,0.3137]
[1759153160588,0.43703,4116.6,4116.1,0.3137]
[1759153160902,0.3402,4116.3,4116.2,0.164]
[1759153161183,0.3402,4116.9,4116.2,0.164]
[1759153161396,0.437,4116.9,4116.3,0.3137]
[1759153161784,0.43701,4116.8,4116.3,0.3137]
[1759153161984,0.43701,4116.8,4116.2,0.4777]
[1759153162384,0.3402,4117.0,4116.2,0.4777]
[1759153162784,40.8,4117.9,4116.2,0.4777]
[1759153162785,0.3402,4117.5,4116.6,0.3137]
[1759153162988,0.3402,4117.5,4116.8,0.3137]
[1759153162989,0.77714,4117.5,4116.8,0.3137]
[1759153163191,0.43695,4117.4,4116.9,0.261]
[1759153163388,0.3402,4117.5,4117.0,0.43698]
[1759153163692,0.3402,4118.0,4117.1,0.3137]
[1759153164194,0.4369,4117.9,4117.2,0.43695]
[1759153164486,0.3402,4118.0,4116.9,0.261]
[1759153164487,0.3222,4117.4,4116.9,0.261]
[1759153164693,0.3222,4117.2,4116.1,37.885]
[1759153164891,0.1352,4118.0,4116.5,0.1262]
[1759153164892,0.43695,4117.4,4116.5,0.1262]
[1759153165098,0.3222,4117.6,4116.5,0.1262]
[1759153165595,0.3222,4117.6,4117.0,0.43698]
[1759153165797,0.1352,4118.0,4117.1,0.261]
[1759153166000,0.4369,4117.8,4117.1,0.69797]
[1759153166299,0.3222,4117.6,4117.2,0.3158]
[1759153166689,0.3222,4117.6,4117.1,0.261]
[1759153166893,0.3222,4117.6,4117.2,0.3158]
[1759153167494,0.1352,4118.0,4117.1,1.01377]
[1759153167995,0.43691,4117.7,4117.1,1.01377]
[1759153168298,0.43691,4117.7,4117.2,0.3158]
[1759153168498,0.3222,4117.9,4117.1,0.5768]
[1759153168903,0.43691,4117.7,4117.1,0.5768]
[1759153169295,0.43685,4118.3,4117.5,0.43693]
[1759153169596,0.00295595,4118.4,4118.1,0.3158]
[1759153169795,0.3222,4118.3,4118.2,0.193]
[1759153170895,5.3222,4118.3,4118.2,0.193]
[1759153171298,0.43979595,4118.4,4118.2,0.5088]
[1759153171596,0.00295595,4118.4,4118.3,0.3158]
[1759153173397,0.3222,4119.9,4119.0,0.3158]
[1759153173592,0.43671,4119.6,4119.2,0.3158]
[1759153173894,0.3222,4119.2,4119.1,0.26]
[1759153174288,0.32511438,4119.2,4119.1,0.26224776]
[1759153174694,0.00291438,4119.2,4119.1,0.57804776]
[1759153176996,0.00291438,4119.2,4119.1,0.26224776]
[1759153177189,0.32511438,4119.2,4119.1,0.26224776]
[1759153177588,0.1352,4120.0,4119.1,0.26224776]
[1759153177589,0.3222,4121.1,4119.2,0.3158]
[1759153177797,0.3222,4121.1,4120.1,0.3158]
[1759153177798,0.43659,4120.8,4120.1,0.3158]
[1759153177998,0.43659,4120.8,4120.2,0.3158]
[1759153178194,41.1222,4121.1,4120.2,0.75244]
[1759153178195,0.43656,4121.0,4120.2,0.75244]
[1759153178388,0.3222,4121.1,4120.2,0.3158]
[1759153178588,0.43657,4120.9,4120.2,0.3158]
[1759153178798,0.43657,4120.9,4120.2,0.75244]
[1759153178999,0.43659,4120.7,4120.2,0.3158]
[1759153179203,0.43661,4120.6,4120.2,0.3158]
[1759153179507,0.43659,4120.8,4120.2,0.3158]
[1759153179801,0.4366,4120.7,4120.2,0.3158]
[1759153179994,0.4366,4120.6,4120.2,0.3158]
[1759153180195,0.4366,4120.6,4120.1,0.26]
[1759153180395,0.43662,4120.5,4120.1,0.26]
[1759153180595,0.43662,4120.5,4120.2,0.3158]
[1759153180800,0.3222,4120.9,4120.1,0.26]
[1759153180995,1.22661,4121.0,4120.1,0.26]
[1759153180996,0.3222,4120.3,4120.1,0.26]
[1759153181394,0.43662,4120.5,4120.1,0.26]
[1759153181590,0.43661,4120.6,4120.1,0.26]
[1759153181794,0.3222,4120.2,4120.1,0.26]
[1759153182200,0.3222,4119.4,4119.2,0.3158]
[1759153182395,0.3222,4119.3,4119.2,0.26]
[1759153182791,0.75895,4119.2,4119.1,0.00224776]
[1759153183905,5.75895,4119.2,4119.1,0.00224776]
[1759153184302,0.75902,4118.6,4118.5,0.0242]
[1759153184699,0.75904,4118.4,4118.3,0.26]
[1759153184999,0.3952,4119.5,4118.3,0.26]
[1759153185000,0.43674,4119.4,4118.4,0.75264]
[1759153185203,0.43678,4119.0,4118.5,0.1262]
[1759153185506,0.43676,4119.2,4118.6,0.3158]
[1759153185708,0.43677,4119.1,4118.6,0.3158]
[1759153185998,0.43678,4119.0,4118.5,0.56303]
[1759153186306,0.3222,4118.7,4118.4,0.31865511]
[1759153186700,0.3222,4118.6,4118.4,0.31865511]
[1759153187002,0.75897,4119.1,4118.5,0.75262]
[1759153187305,1.41404,4119.4,4118.5,0.3158]
[1759153187807,0.3222,4118.5,4118.4,0.00285511]
[1759153188304,0.75896,4119.2,4118.4,0.31865511]
[1759153188496,0.3222,4118.9,4118.5,0.3158]
[1759153188807,0.43674,4119.4,4118.7,0.75261]
[1759153189106,0.43675,4119.3,4118.6,0.3158]
[1759153189806,0.3222,4119.5,4118.6,0.3158]
[1759153190012,0.4574,4119.5,4118.6,0.3158]
[1759153190312,0.43677,4119.1,4118.5,0.1262]
[1759153190601,0.43678,4119.0,4118.6,0.3158]
[1759153190802,0.3222,4118.9,4118.6,0.3158]
[1759153191200,0.3222,4119.4,4118.7,0.3158]
[1759153191403,0.3222,4119.4,4118.7,0.75261]
[1759153191605,0.1352,4119.5,4118.5,0.43682]
[1759153191802,0.43678,4119.0,4118.9,0.3158]
[1759153191998,0.43673,4119.4,4118.6,0.3158]
[1759153192204,0.3222,4119.6,4118.6,0.3158]
[1759153192509,0.3222,4119.6,4119.4,0.3158]
[1759153192704,0.75889,4119.8,4119.4,0.3158]
[1759153192911,0.4367,4119.7,4119.5,0.3158]
[1759153193104,0.3222,4119.6,4119.5,0.3158]
[1759153193410,0.43668,4119.9,4119.5,0.75251]
[1759153193703,0.3222,4119.6,4119.3,0.75254]
[1759153193909,0.3222,4119.6,4119.3,0.43674]
[1759153194097,0.4367,4119.7,4119.3,0.3362]
[1759153194305,1.09162,4120.3,4119.3,0.3362]
[1759153194306,0.75481,4119.6,4119.3,0.3362]
[1759153194504,1.2269,4120.0,4119.2,0.259]
[1759153194505,0.75485,4119.3,4119.2,0.259]
[1759153195502,0.89053,4118.5,4118.4,0.00285511]
[1759153195706,5.89053,4118.5,4118.4,0.00285511]
[1759153196107,46.69053,4118.5,4118.4,0.00285511]
[1759153196508,46.69053,4118.5,4117.3,0.259]
[1759153196509,0.3181,4117.9,4117.3,0.259]
[1759153196711,0.3181,4117.4,4117.3,0.259]
[1759153197104,0.57254,4117.5,4116.5,37.9982]
[1759153197105,0.3181,4116.7,4116.5,37.868]
[1759153197308,0.3181,4116.9,4116.5,37.868]
[1759153197604,0.75513,4116.7,4116.5,37.86985011]
[1759153197813,0.00241398,4116.9,4116.5,37.86985011]
[1759153197814,0.43942398,4116.9,4116.5,37.86985011]
[1759153198012,0.43702,4116.8,4116.5,37.86985011]
[1759153198207,0.3181,4116.8,4116.5,37.86985011]
[1759153198409,0.00241398,4116.9,4116.5,37.86985011]
[1759153198710,0.3181,4116.6,4116.5,0.00185011]
[1759153199215,0.43702,4116.7,4116.5,0.00185011]
[1759153199216,40.80241398,4116.9,4116.6,0.3362]
[1759153199708,0.00241398,4116.9,4116.8,0.3362]
[1759153199912,0.3181,4116.8,4116.5,0.00185011]
[1759153200107,0.3181,4116.6,4116.5,0.00185011]
[1759153200812,0.00241398,4116.9,4116.6,0.3362]
[1759153201007,0.43941398,4116.9,4116.5,0.33805011]
[1759153201313,0.43702,4116.7,4116.5,0.00185011]
[1759153201608,0.3181,4116.6,4116.5,0.00185011]
[1759153201808,0.43702,4116.7,4116.5,0.33805011]
[1759153202013,0.3181,4116.6,4116.5,0.00185011]
[1759153202414,0.00241398,4116.9,4116.5,0.43888011]
[1759153202603,0.00241398,4116.9,4116.6,0.3362]
[1759153202805,0.3181,4116.8,4116.6,0.3362]
[1759153203008,0.00241398,4116.9,4116.7,0.3362]
[1759153203213,0.00241398,4116.9,4116.6,0.43702]
[1759153203515,0.00241398,4116.9,4116.8,0.3362]
[1759153204411,0.00241398,4116.9,4116.5,0.33805011]
[1759153204714,0.3181,4116.6,4116.5,0.00185011]
[1759153204912,0.00241398,4116.9,4116.5,0.00185011]
[1759153205107,0.00241398,4116.9,4116.7,0.3362]
[1759153205307,0.00241398,4116.9,4116.8,0.3362]
[1759153206010,0.3181,4116.8,4116.5,0.00185011]
[1759153206315,0.00241398,4116.9,4116.8,0.3362]
[1759153206815,0.43702,4116.8,4116.5,0.00185011]
[1759153207011,0.3181,4116.7,4116.5,0.00185011]
[1759153207408,0.3181,4116.6,4116.5,0.00185011]
[1759153208014,5.3181,4116.6,4116.5,0.00185011]
[1759153208408,0.3181,4116.6,4116.5,0.00185011]
[1759153209018,5.3181,4116.6,4116.5,0.00185011]
[1759153209521,0.3181,4116.4,4115.6,0.259]
[1759153209716,0.1356,4116.0,4115.2,37.869]
[1759153209912,1.09284,4115.7,4114.7,0.259]
[1759153210110,0.1356,4116.0,4114.7,0.259]
[1759153210111,0.1356,4116.0,4115.2,0.3362]
[1759153210413,0.1356,4116.0,4115.2,0.33920443]
[1759153210414,0.4371,4116.0,4115.2,0.33920443]
[1759153210614,0.3181,4115.4,4115.2,0.00300443]
[1759153210817,0.4537,4116.0,4115.5,0.43715]
[1759153211013,0.43708,4116.2,4115.5,0.43714]
[1759153211214,0.3181,4116.3,4115.3,0.3362]
[1759153211420,0.43707,4116.3,4115.8,0.43711]
[1759153211716,0.43712,4115.9,4115.6,0.0242]
[1759153211914,0.3181,4115.7,4115.6,0.0242]
[1759153213615,0.76277,4115.3,4115.2,0.00300443]
[1759153213812,0.3256,4115.3,4115.2,0.00300443]
[1759153214008,40.8,4115.3,4115.2,0.32860443]
[1759153214314,2.18745398,4116.9,4115.8,0.43711]
[1759153214315,0.76266,4116.4,4115.8,0.43711]
[1759153214611,0.3256,4116.7,4115.5,0.3836]
[1759153214811,0.00241398,4116.9,4115.5,0.3836]
[1759153214812,0.43942398,4116.9,4115.7,0.3256]
[1759153215017,0.3256,4116.7,4115.7,0.3256]
[1759153215214,0.3256,4116.0,4115.7,0.3256]
[1759153215411,41.1256,4116.8,4115.6,1.41843]
[1759153215610,41.1256,4116.8,4116.4,0.3256]
[1759153215611,0.43703,4116.7,4116.4,0.3256]
[1759153215916,0.76265,4116.5,4115.8,0.43712]
[1759153216117,0.3256,4116.5,4115.7,0.3256]
[1759153216314,0.3256,4116.5,4116.1,0.43708]
[1759153216513,0.3256,4116.7,4115.9,0.4371]
[1759153216710,0.43705,4116.5,4115.8,0.43712]
[1759153216918,0.3256,4115.7,4115.6,0.0242]
[1759153217522,41.1256,4115.7,4115.6,0.0242]
[1759153218017,46.1256,4115.7,4115.6,0.0242]
[1759153218318,0.76277,4115.3,4115.2,0.00300443]
[1759153219014,0.3256,4115.3,4115.2,0.00300443]
[1759153222015,40.8,4115.7,4115.5,0.43715]
[1759153222218,0.3256,4116.1,4115.5,0.3256]
[1759153222424,0.3256,4116.1,4115.9,0.43711]
[1759153222616,0.3256,4116.1,4115.8,0.3256]
[1759153222817,0.43708,4116.2,4115.8,0.3256]
[1759153222818,40.8,4116.0,4115.8,0.3256]
[1759153223117,40.8,4116.0,4115.9,0.3256]
[1759153223323,40.8,4116.0,4115.4,0.26]
[1759153223324,0.3256,4115.5,4115.4,0.26]
[1759153223515,0.4496,4115.5,4115.4,0.26]
[1759153223914,0.3256,4115.5,4115.4,0.26]
[1759153224414,0.3256,4115.5,4115.4,0.2592]
[1759153224725,0.3404,4115.3,4115.2,0.00300443]
[1759153224919,0.3404,4114.7,4114.5,0.319]
[1759153225122,0.3404,4115.3,4114.6,0.319]
[1759153225322,41.23719,4115.2,4114.9,0.319]
[1759153225521,0.4372,4115.1,4114.7,0.319]
[1759153225818,0.4372,4115.1,4114.9,0.319]
[1759153226025,40.8,4115.2,4115.1,0.319]
[1759153226219,0.43719,4115.2,4114.9,0.319]
[1759153226418,0.3404,4115.1,4114.7,0.32128872]
[1759153226623,0.3404,4115.1,4114.8,0.75623]
[1759153226822,0.3404,4115.1,4114.9,0.43722]
[1759153227023,0.3404,4114.9,4114.7,0.00228872]
[1759153227217,0.3404,4114.8,4114.7,0.00228872]
[1759153227817,0.43722,4114.9,4114.7,0.00228872]
[1759153228026,0.43721,4115.0,4114.8,0.319]
[1759153228322,40.8,4115.3,4114.8,0.319]
[1759153228527,41.1404,4115.3,4114.7,0.32128872]
[1759153228731,0.3404,4115.2,4115.0,0.319]
[1759153228916,0.3404,4115.8,4114.8,1.09305]
[1759153229229,0.3404,4115.8,4114.7,0.00228872]
[1759153229230,0.3404,4115.8,4115.2,0.43717]
[1759153229430,0.43713,4115.7,4115.4,0.43716]
[1759153229625,0.3404,4116.5,4115.7,0.43712]
[1759153229831,0.3404,4116.5,4115.8,0.319]
[1759153230033,0.43707,4116.3,4115.9,0.43711]
[1759153230322,0.3404,4116.7,4115.9,0.43711]
[1759153230525,0.77743,4116.7,4116.3,0.319]
[1759153230729,40.8,4116.8,4116.1,0.26]
[1759153230923,40.8,4116.8,4116.5,0.43704]
[1759153231119,0.43705,4116.5,4116.2,0.319]
[1759153231320,0.77746,4116.4,4116.2,0.319]
[1759153231528,0.3404,4116.2,4116.1,0.26]
[1759153233228,0.4371,4116.1,4115.8,0.319]
[1759153233525,0.4371,4116.0,4115.6,0.75614]
[1759153233717,0.1294,4116.5,4115.3,0.26]
[1759153233718,1.09267,4116.4,4115.3,0.26]
[1759153233922,0.3404,4115.4,4115.3,0.26]
[1759153235328,0.43707,4116.3,4115.4,0.319]
[1759153235524,40.8,4116.8,4116.1,0.319]
[1759153235729,0.3404,4117.1,4116.2,0.26]
[1759153235922,0.43703,4116.7,4116.3,0.43706]
[1759153236122,0.77745,4116.5,4116.2,0.26]
[1759153236321,0.3404,4116.6,4116.3,0.261]
[1759153236522,0.77744,4116.6,4116.3,0.58]
[1759153236821,0.3404,4117.7,4116.7,0.43703]
[1759153237022,0.3404,4117.7,4116.8,5.319]
[1759153237324,0.3404,4118.2,4117.0,1.22629]
[1759153237526,0.77727,4118.2,4117.5,0.88973]
[1759153237835,0.43692,4117.7,4117.1,1.55090668]
[1759153238024,0.3404,4117.8,4117.2,0.261]
[1759153238329,0.43692,4117.7,4117.2,0.261]
[1759153238523,0.00172791,4117.8,4117.3,0.261]
[1759153238722,0.3404,4117.4,4117.3,0.261]
[1759153239024,0.43695,4117.5,4117.3,0.261]
[1759153239225,0.3404,4117.4,4117.3,0.261]
[1759153239827,0.43693,4117.6,4117.3,0.261]
[1759153240029,1.09241,4117.3,4116.3,1.28990668]
[1759153240232,0.43709,4116.1,4116.0,0.319]
[1759153240420,0.43712,4115.9,4115.6,0.319]
[1759153240624,0.77752,4115.8,4115.7,0.26]
[1759153240827,0.43709,4116.2,4115.7,0.26]
[1759153241134,0.43711,4116.0,4115.8,0.319]
[1759153241634,0.43708,4116.2,4115.8,0.319]
[1759153241834,0.43709,4116.1,4115.8,0.319]
[1759153242029,0.43708,4116.3,4115.7,0.26]
[1759153242330,0.43701,4116.9,4116.3,0.43706]
[1759153242534,1.09236,4117.6,4116.6,0.319]
[1759153242535,0.3404,4117.4,4116.6,0.319]
[1759153242735,0.43701,4116.9,4116.7,0.319]
[1759153243032,0.3404,4117.4,4116.5,0.319]
[1759153243237,0.43697,4117.2,4116.8,0.43701]
[1759153243428,0.43698,4117.1,4116.8,0.319]
[1759153243631,0.43694,4117.5,4116.6,0.319]
[1759153243826,0.43863791,4117.8,4117.4,0.319]
[1759153244132,0.00172791,4117.8,4117.5,0.319]
[1759153244333,0.3404,4117.5,4117.4,0.26]
[1759153245137,0.00172791,4117.8,4117.4,0.26]
[1759153245338,0.43694,4117.5,4117.4,0.579]
[1759153245540,0.43694,4117.5,4117.4,0.26]
[1759153245738,0.77734,4117.5,4117.4,0.26]
[1759153246837,0.3404,4117.5,4117.4,0.26]
[1759153247036,0.43693,4117.6,4117.4,0.26]
[1759153247340,0.43693,4117.6,4117.4,0.579]
[1759153247637,0.43693,4117.6,4117.4,0.26]
[1759153247841,0.3404,4117.5,4117.4,0.26]
[1759153248139,0.00172791,4117.8,4117.7,0.319]
[1759153248336,0.00172791,4117.8,4117.7,0.321712]
[1759153248533,0.3404,4119.4,4118.2,0.319]
[1759153248733,0.3404,4119.4,4118.7,0.319]
[1759153248934,0.3404,4119.4,4118.5,0.1338]
[1759153249135,0.4368,4118.9,4118.5,0.1338]
[1759153249328,0.43678,4119.1,4118.7,0.43681]
[1759153249534,0.4368,4118.9,4118.5,0.88963]
[1759153249734,0.43681,4118.8,4118.6,0.319]
[1759153250138,0.43683,4118.6,4118.3,0.26]
[1759153250336,0.43681,4118.8,4118.4,0.319]
[1759153250539,0.43682,4118.7,4118.4,0.319]
[1759153250739,0.34330951,4119.1,4118.3,0.579]
[1759153250942,0.43682,4118.7,4118.4,0.319]
[1759153251449,0.00290951,4119.1,4118.5,0.4528]
[1759153251634,0.4368,4118.9,4118.5,0.1338]
[1759153251835,0.43682,4118.7,4118.6,0.319]
[1759153252434,0.00290951,4119.1,4118.6,0.319]
[1759153252640,0.00290951,4119.1,4119.0,0.319]
[1759153253442,0.00290951,4119.1,4119.0,0.4528]
[1759153253636,4.12397082,4121.8,4119.0,0.4528]
[1759153253637,0.43663,4120.5,4119.6,0.319]
[1759153253837,0.43663,4120.5,4119.8,0.319]
[1759153254049,0.3404,4120.8,4120.1,0.3262]
[1759153254245,0.43659,4120.8,4120.5,0.3262]
[1759153254444,0.43658,4120.9,4120.3,0.76284]
[1759153254745,0.43658,4120.9,4120.5,0.3262]
[1759153254746,0.4366,4120.7,4120.5,0.3262]
[1759153254948,0.4366,4120.7,4120.1,0.3262]
[1759153255140,0.43663,4120.5,4120.1,0.3262]
[1759153255334,0.43663,4120.5,4120.0,0.1338]
[1759153255543,0.43663,4120.5,4120.1,0.3262]
[1759153255744,0.43667,4120.2,4120.1,0.3262]
[1759153255939,0.4367,4120.0,4119.8,0.3262]
[1759153256148,0.43671,4119.9,4119.7,0.26]
[1759153256347,0.43671,4119.9,4119.7,0.5862]
[1759153256746,0.77531,4119.9,4119.7,0.5862]
[1759153257147,0.77531,4119.9,4119.7,0.26]
[1759153257649,0.3386,4119.8,4119.7,0.26]
[1759153257849,0.43671,4119.9,4119.7,0.26]
[1759153258039,0.1261,4120.5,4119.7,0.26]
[1759153258243,0.43671,4119.9,4119.7,0.26]
[1759153258443,0.43671,4119.9,4119.8,0.3262]
[1759153258644,0.43671,4119.9,4119.7,0.26]
[1759153259041,0.43668,4120.1,4119.7,0.26]
[1759153259246,0.4367,4120.0,4119.8,0.3262]
[1759153259438,0.3386,4119.8,4119.7,0.26]
[1759153260639,41.1386,4120.4,4119.7,0.26]
[1759153260852,0.43671,4119.9,4119.8,0.3262]
[1759153261245,0.3386,4120.4,4119.8,0.3262]
[1759153261441,0.4367,4120.0,4119.7,0.69672]
[1759153261646,0.43671,4119.9,4119.8,0.3262]
[1759153262155,0.3386,4119.8,4119.7,0.26]
[1759153262849,0.3386,4119.8,4118.8,0.259]
[1759153262850,0.77541,4119.0,4118.8,0.259]
[1759153263149,0.4368,4119.0,4118.8,0.259]
[1759153263357,0.4368,4119.0,4118.9,0.3262]
[1759153263648,0.3386,4119.9,4119.2,0.43677]
[1759153263854,0.3386,4119.9,4119.2,0.3262]
[1759153264052,0.43676,4119.4,4119.0,0.5726]
[1759153264354,0.43677,4119.3,4119.1,0.43679]
[1759153264554,0.43676,4119.4,4119.2,0.3262]
[1759153264760,0.1261,4121.5,4119.4,1.4181]
[1759153264951,0.43662,4120.7,4120.0,0.1358]
[1759153265253,0.43662,4120.7,4120.5,0.3262]
[1759153265448,0.77522,4120.7,4120.5,0.3262]
[1759153265643,0.3386,4120.4,4120.1,0.0242]
[1759153265851,0.43663,4120.6,4120.5,0.3262]
[1759153266050,0.43665,4120.5,4120.3,0.3262]
[1759153266551,1.09134,4121.6,4120.3,0.3262]
[1759153266552,0.3386,4121.3,4120.8,0.3262]
[1759153266753,0.43653,4121.6,4120.8,0.58695207]
[1759153266956,0.3386,4121.9,4120.8,0.58695207]
[1759153267151,0.43654,4121.5,4120.8,0.58695207]
[1759153267357,0.43655,4121.4,4120.8,0.58695207]
[1759153267656,0.3386,4121.9,4120.8,0.58695207]
[1759153267957,0.43655,4121.4,4120.8,0.58695207]
[1759153268148,0.3386,4121.9,4120.8,5.58695207]